fUSD/lending_fUSD_20240918
["ID","MTS","AMOUNT","RATE_DAILY","PERIOD"]
[338415227,1726620638012,-1070.1255496,0.00013,2]
[338415229,1726620638025,-45150.18249742,0.00013,2]
[338415231,1726620638036,-27862.25028105,0.00013,2]
[338415233,1726620638047,-683840.38172832,0.00013,2]
[338415235,1726620638058,-978.12,0.00013,2]
[338415237,1726620638068,-821.51196,0.00013,2]
[338415239,1726620638077,-821.51197,0.0001301,2]
[338415241,1726620638086,-752.01,0.00013025,2]
[338415242,1726620638096,-11077.89,0.00013025,2]
[338415244,1726620638106,-11230.7,0.00013074,2]
[338415246,1726620638115,-625.0,0.0001309,2]
[338415248,1726620638126,-448.0,0.0001309,2]
[338415250,1726620638135,-1262.0,0.0001309,2]
[338415252,1726620638145,-1548.0,0.0001309,2]
[338415254,1726620638154,-558.0,0.0001309,2]
[338415256,1726620638164,-932.0,0.0001309,2]
[338415258,1726620638173,-150.0,0.0001309,2]
[338415259,1726620638182,-810.0,0.0001309,2]
[338415261,1726620638192,-553.0,0.0001309,2]
[338415263,1726620638201,-1902.0,0.0001309,2]
[338415265,1726620638209,-1916.0,0.0001309,2]
[338415267,1726620638219,-3346.0,0.0001309,2]
[338415269,1726620638228,-821.51197,0.0001309,2]
[338415270,1726620638237,-806.0,0.0001309,2]
[338415272,1726620638246,-248.0,0.0001309,2]
[338415274,1726620638256,-5864.0,0.0001309,2]
[338415276,1726620638265,-13484.0,0.0001309,2]
[338415278,1726620638273,-150.0,0.0001309,2]
[338415280,1726620638283,-1146.0,0.0001309,2]
[338415282,1726620638292,-150.0,0.0001309,2]
[338415284,1726620638300,-1080.0,0.0001309,2]
[338415286,1726620638309,-3491.70507545,0.00013122,2]
[338415288,1726620638318,-821.51196,0.0001316,2]
[338415290,1726620638328,-11394.93,0.00013214,2]
[338415292,1726620638338,-821.51197,0.0001324,2]
[338415294,1726620638348,-11051.86,0.00013272,2]
[338415296,1726620638358,-11348.95,0.0001334,2]
[338415298,1726620638367,-1000.0,0.0001334,2]
[338415300,1726620638377,-1000.0,0.0001334,2]
[338415302,1726620638386,-1000.0,0.0001334,2]
[338415304,1726620638395,-1000.0,0.0001334,2]
[338415306,1726620638404,-1000.0,0.0001334,2]
[338415308,1726620638414,-386.29089712,0.0001334,2]
[338415310,1726620638425,-3491.70507545,0.00013344,2]
[338415312,1726620638434,-1000.0,0.00013366,2]
[338415314,1726620638443,-1000.0,0.00013366,2]
[338415316,1726620638452,-1000.0,0.00013366,2]
[338415318,1726620638461,-1000.0,0.00013366,2]
[338415320,1726620638470,-1000.0,0.00013366,2]
[338415322,1726620638479,-1000.0,0.00013366,2]
[338415324,1726620638488,-1000.0,0.00013366,2]
[338415326,1726620638496,-1000.0,0.00013366,2]
[338415328,1726620638505,-1000.0,0.00013366,2]
[338415330,1726620638514,-1000.0,0.00013366,2]
[338415332,1726620638523,-1000.0,0.00013366,2]
[338415334,1726620638532,-1000.0,0.00013366,2]
[338415336,1726620638541,-1000.0,0.00013366,2]
[338415338,1726620638550,-1000.0,0.00013366,2]
[338415339,1726620638559,-1000.0,0.00013366,2]
[338415341,1726620638568,-150.34,0.0001337,2]
[338415343,1726620638577,-590.0,0.00013428,2]
[338415345,1726620638587,-11137.28,0.00013429,2]
[338415347,1726620638596,-52691.96700419,0.00013429,2]
[338415349,1726620638604,-960.5701216,0.00013429,2]
[338415351,1726620638613,-1443.07251436,0.00013429,2]
[338415353,1726620638623,-11197.9,0.00013512,2]
[338415355,1726620638633,-3491.70507545,0.00013567,2]
[338415357,1726620638642,-11445.69,0.00013615,2]
[338415359,1726620638652,-163.84,0.00013686,2]
[338415361,1726620638661,-846.91,0.00013699,2]
[338415363,1726620638670,-150.01,0.00013699,2]
[338415365,1726620638679,-200.0,0.00013699,2]
[338415367,1726620638688,-500.0,0.00013699,2]
[338415369,1726620638697,-2751.0,0.00013699,2]
[338415371,1726620638706,-151.0,0.00013699,2]
[338415373,1726620638715,-151.0,0.00013699,2]
[338415375,1726620638724,-151.0,0.00013699,2]
[338415377,1726620638732,-151.0,0.00013699,2]
[338415379,1726620638741,-1264.293373,0.00013699,2]
[338415381,1726620638751,-1264.293373,0.00013699,2]
[338415383,1726620638759,-151.0,0.00013699,2]
[338415385,1726620638769,-151.0,0.00013699,2]
[338415387,1726620638777,-151.0,0.00013699,2]
[338415389,1726620638788,-151.0,0.00013699,2]
[338415391,1726620638796,-151.0,0.00013699,2]
[338415393,1726620638806,-151.0,0.00013699,2]
[338415395,1726620638817,-151.0,0.00013699,2]
[338415397,1726620638826,-256.763157,0.00013699,2]
[338415399,1726620638835,-220.013138,0.00013699,2]
[338415400,1726620638844,-151.0,0.00013699,2]
[338415401,1726620638853,-151.0,0.00013699,2]
[338415402,1726620638861,-228.672876,0.00013699,2]
[338415403,1726620638870,-228.672876,0.00013699,2]
[338415404,1726620638880,-159.291619,0.00013699,2]
[338415405,1726620638890,-159.291619,0.00013699,2]
[338415406,1726620638899,-151.0,0.00013699,2]
[338415407,1726620638908,-449.582672,0.00013699,2]
[338415408,1726620638918,-449.582672,0.00013699,2]
[338415409,1726620638928,-221.101635,0.00013699,2]
[338415410,1726620638938,-221.101635,0.00013699,2]
[338415411,1726620638947,-151.0,0.00013699,2]
[338415412,1726620638957,-151.0,0.00013699,2]
[338415413,1726620638966,-151.0,0.00013699,2]
[338415414,1726620638976,-151.0,0.00013699,2]
[338415415,1726620638985,-151.0,0.00013699,2]
[338415416,1726620638994,-249.412591,0.00013699,2]
[338415417,1726620639004,-173.338598,0.00013699,2]
[338415418,1726620639013,-1072.212316,0.00013699,2]
[338415419,1726620639024,-173.338598,0.00013699,2]
[338415420,1726620639034,-1072.212316,0.00013699,2]
[338415421,1726620639043,-249.412591,0.00013699,2]
[338415422,1726620639053,-151.0,0.00013699,2]
[338415423,1726620639063,-187.564581,0.00013699,2]
[338415424,1726620639073,-187.564581,0.00013699,2]
[338415425,1726620639083,-151.0,0.000137,2]
[338415426,1726620639092,-278.685653,0.000137,2]
[338415427,1726620639103,-151.0,0.000137,2]
[338415428,1726620639113,-151.0,0.000137,2]
[338415429,1726620639122,-232.079863,0.000137,2]
[338415430,1726620639133,-232.079863,0.000137,2]
[338415431,1726620639142,-176.609639,0.000137,2]
[338415432,1726620639152,-151.0,0.000137,2]
[338415433,1726620639161,-176.609639,0.000137,2]
[338415434,1726620639171,-2500.0,0.000137,2]
[338415435,1726620639180,-223.681382,0.00013704,2]
[338415436,1726620639190,-151.0,0.00013704,2]
[338415437,1726620639199,-223.681382,0.00013704,2]
[338415438,1726620639208,-151.0,0.00013704,2]
[338415439,1726620639218,-151.0,0.00013704,2]
[338415440,1726620639226,-151.0,0.00013704,2]
[338415441,1726620639235,-151.0,0.00013704,2]
[338415442,1726620639245,-151.0,0.00013704,2]
[338415443,1726620639254,-151.0,0.00013704,2]
[338415444,1726620639263,-162.617174,0.00013704,2]
[338415445,1726620639274,-151.0,0.00013704,2]
[338415446,1726620639283,-162.617174,0.00013704,2]
[338415447,1726620639293,-151.0,0.00013704,2]
[338415448,1726620639302,-151.0,0.00013704,2]
[338415449,1726620639312,-228.672876,0.00013704,2]
[338415450,1726620639321,-228.672876,0.00013704,2]
[338415451,1726620639330,-159.291619,0.00013704,2]
[338415452,1726620639340,-159.291619,0.00013704,2]
[338415453,1726620639349,-151.0,0.00013704,2]
[338415454,1726620639359,-449.582672,0.00013704,2]
[338415455,1726620639368,-449.582672,0.00013704,2]
[338415456,1726620639378,-221.101635,0.00013704,2]
[338415457,1726620639387,-221.101635,0.00013704,2]
[338415458,1726620639397,-151.0,0.00013704,2]
[338415459,1726620639406,-258.828013,0.00013704,2]
[338415460,1726620639416,-151.0,0.00013704,2]
[338415461,1726620639426,-151.0,0.00013704,2]
[338415462,1726620639436,-151.0,0.00013704,2]
[338415463,1726620639445,-173.338598,0.00013704,2]
[338415464,1726620639455,-151.0,0.00013704,2]
[338415465,1726620639465,-249.412591,0.00013704,2]
[338415466,1726620639475,-173.338598,0.00013704,2]
[338415467,1726620639484,-249.412591,0.00013704,2]
[338415468,1726620639494,-151.0,0.00013704,2]
[338415469,1726620639503,-151.0,0.00013704,2]
[338415470,1726620639513,-187.564581,0.00013704,2]
[338415472,1726620639522,-187.564581,0.00013704,2]
[338415473,1726620639532,-254.376,0.00013704,2]
[338415474,1726620639542,-254.376,0.00013704,2]
[338415475,1726620639551,-155.57775669,0.00013704,2]
[338415476,1726620639561,-151.0,0.00013704,2]
[338415477,1726620639571,-151.0,0.00013704,2]
[338415478,1726620639581,-151.0,0.00013704,2]
[338415479,1726620639591,-151.0,0.00013704,2]
[338415480,1726620639600,-151.0,0.00013704,2]
[338415481,1726620639611,-1702.987667,0.00013704,2]
[338415482,1726620639621,-151.0,0.00013704,2]
[338415483,1726620639631,-291.575652,0.00013704,2]
[338415484,1726620639642,-1702.987667,0.00013704,2]
[338415485,1726620639651,-291.575652,0.00013704,2]
[338415486,1726620639661,-3365.89868,0.00013704,2]
[338415487,1726620639671,-3365.89868,0.00013704,2]
[338415488,1726620639681,-151.0,0.00013704,2]
[338415489,1726620639691,-151.0,0.00013704,2]
[338415490,1726620639701,-151.0,0.00013704,2]
[338415491,1726620639711,-151.0,0.00013704,2]
[338415492,1726620639720,-151.0,0.00013704,2]
[338415493,1726620639730,-151.0,0.00013704,2]
[338415494,1726620639740,-680.479048,0.00013704,2]
[338415495,1726620639750,-151.0,0.00013704,2]
[338415496,1726620639761,-680.479048,0.00013704,2]
[338415497,1726620639770,-151.0,0.00013704,2]
[338415498,1726620639780,-151.0,0.00013704,2]
[338415499,1726620639790,-151.0,0.00013704,2]
[338415500,1726620639800,-151.0,0.00013704,2]
[338415501,1726620639809,-151.0,0.00013704,2]
[338415502,1726620639819,-33233.673246,0.00013704,2]
[338415503,1726620639828,-1610.805947,0.00013704,2]
[338415504,1726620639838,-35751.526646,0.00013704,2]
[338415505,1726620639847,-183.994761,0.00013704,2]
[338415506,1726620639856,-971.881423,0.00013704,2]
[338415507,1726620639866,-150.0,0.00013725,2]
[338415508,1726620639875,-151.0,0.00013746,2]
[338415509,1726620639885,-151.0,0.00013746,2]
[338415510,1726620639895,-151.0,0.00013746,2]
[338415511,1726620639905,-232.079863,0.00013746,2]
[338415512,1726620639914,-232.079863,0.00013746,2]
[338415513,1726620639923,-151.0,0.00013746,2]
[338415514,1726620639933,-151.0,0.00013746,2]
[338415515,1726620639944,-151.0,0.00013746,2]
[338415516,1726620639953,-151.0,0.00013746,2]
[338415517,1726620639963,-176.609639,0.00013746,2]
[338415518,1726620639973,-151.0,0.00013746,2]
[338415519,1726620639983,-1264.293373,0.00013746,2]
[338415520,1726620639992,-176.609639,0.00013746,2]
[338415521,1726620640002,-1264.293373,0.00013746,2]
[338415522,1726620640012,-151.0,0.00013746,2]
[338415523,1726620640022,-151.0,0.00013746,2]
[338415524,1726620640032,-151.0,0.00013746,2]
[338415525,1726620640042,-151.0,0.00013746,2]
[338415526,1726620640052,-151.0,0.00013746,2]
[338415527,1726620640063,-189.745641,0.00013746,2]
[338415528,1726620640073,-151.0,0.00013746,2]
[338415530,1726620640083,-1072.212316,0.00013746,2]
[338415531,1726620640093,-1072.212316,0.00013746,2]
[338415532,1726620640104,-11215.15,0.00013746,2]
[338415533,1726620640114,-150.0,0.00013758,2]
[338415534,1726620640124,-151.0,0.0001376,2]
[338415535,1726620640133,-232.800948,0.0001376,2]
[338415536,1726620640143,-151.0,0.0001376,2]
[338415537,1726620640152,-151.0,0.0001376,2]
[338415538,1726620640162,-151.0,0.0001376,2]
[338415539,1726620640172,-151.0,0.0001376,2]
[338415540,1726620640182,-229.985627,0.0001376,2]
[338415541,1726620640192,-283.559053,0.0001376,2]
[338415542,1726620640202,-151.0,0.0001376,2]
[338415543,1726620640211,-151.0,0.0001376,2]
[338415544,1726620640221,-151.0,0.0001376,2]
[338415545,1726620640230,-151.0,0.0001376,2]
[338415546,1726620640240,-151.0,0.0001376,2]
[338415547,1726620640250,-868.431633,0.0001376,2]
[338415548,1726620640258,-151.0,0.0001376,2]
[338415549,1726620640268,-868.431633,0.0001376,2]
[338415550,1726620640277,-299.627395,0.0001376,2]
[338415551,1726620640287,-151.0,0.0001376,2]
[338415552,1726620640296,-299.627395,0.0001376,2]
[338415553,1726620640305,-151.0,0.0001376,2]
[338415554,1726620640315,-151.0,0.0001376,2]
[338415555,1726620640325,-500.0,0.00013773,2]
[338415556,1726620640334,-211.4365633,0.00013773,2]
[338415557,1726620640344,-224.74647339,0.00013773,2]
[338415558,1726620641262,-275.52126727,0.00013773,2]
[338415559,1726620641271,-61.89873273,0.00013773,2]
[338415560,1726620641312,-235.25669427,0.00013773,2]
[338415561,1726620641321,-151.0,0.00013773,2]
[338415562,1726620641331,-151.0,0.00013773,2]
[338415563,1726620641340,-100.99179126,0.00013773,2]
[338415564,1726620642286,-402.22862393,0.00013198,2]
[338415565,1726620642296,-151.0,0.00013704,2]
[338415566,1726620642306,-50.00820874,0.00013773,2]
[338415567,1726620642315,-151.0,0.00013773,2]
[338415568,1726620642324,-32.82528057,0.00013773,2]
[338415569,1726620642336,-118.17471943,0.00013773,2]
[338415570,1726620642345,-151.0,0.00013773,2]
[338415571,1726620642355,-151.0,0.00013773,2]
[338415572,1726620642365,-254.376,0.00013773,2]
[338415573,1726620642374,-254.376,0.00013773,2]
[338415574,1726620642383,-151.0,0.00013773,2]
[338415575,1726620642393,-151.0,0.00013773,2]
[338415576,1726620642402,-151.0,0.00013773,2]
[338415577,1726620642411,-151.0,0.00013773,2]
[338415578,1726620642420,-151.0,0.00013773,2]
[338415579,1726620642429,-74.56857649,0.00013773,2]
[338415580,1726620642444,-543.71349073,0.00013773,2]
[338415581,1726620642455,-1084.70559978,0.00013773,2]
[338415582,1726620642465,-151.0,0.00013773,2]
[338415583,1726620642474,-291.575652,0.00013773,2]
[338415584,1726620642484,-1138.73709427,0.00013773,2]
[338415585,1726620642496,-564.25057273,0.00013773,2]
[338415586,1726620642505,-291.575652,0.00013773,2]
[338415587,1726620642514,-2900.84177467,0.00013773,2]
[338415588,1726620642633,-465.05690533,0.00013773,2]
[338415589,1726620642643,-37.44197523,0.00013773,2]
[338415590,1726620642654,-1213.13686397,0.00013773,2]
[338415591,1726620642666,-354.33584849,0.00013773,2]
[338415592,1726620642678,-1760.98399231,0.00013773,2]
[338415593,1726620642688,-151.0,0.00013773,2]
[338415594,1726620642699,-151.0,0.00013773,2]
[338415595,1726620642708,-493.85530844,0.00013773,2]
[338415596,1726620642819,-186.62373956,0.00013773,2]
[338415597,1726620642829,-680.479048,0.00013773,2]
[338415598,1726620642838,-151.0,0.00013773,2]
[338415599,1726620642848,-151.0,0.00013773,2]
[338415600,1726620642858,-500.0,0.00013788,2]
[338415601,1726620642868,-500.0,0.00013789,2]
[338415602,1726620642878,-500.0,0.00013789,2]
[338415603,1726620642887,-254.52720733,0.00013789,2]
[338415604,1726620642900,-3237.17786812,0.00013789,2]
[338415605,1726620642910,-151.0,0.000138,2]
[338415606,1726620642920,-151.0,0.000138,2]
[338415607,1726620642930,-151.0,0.000138,2]
[338415608,1726620642940,-151.0,0.000138,2]
[338415609,1726620642950,-151.0,0.000138,2]
[338415610,1726620642960,-151.0,0.000138,2]
[338415611,1726620642969,-151.0,0.000138,2]
[338415612,1726620642979,-151.0,0.000138,2]
[338415613,1726620642989,-175.810098,0.000138,2]
[338415614,1726620642999,-151.0,0.000138,2]
[338415616,1726620643009,-281.215786,0.000138,2]
[338415619,1726620643019,-281.215786,0.000138,2]
[338415621,1726620643032,-151.0,0.000138,2]
[338415623,1726620643042,-151.0,0.000138,2]
[338415624,1726620643051,-112.58046188,0.000138,2]
[338415625,1726620643096,-38.41953812,0.000138,2]
[338415626,1726620643107,-492.82276578,0.000138,2]
[338415627,1726620643119,-375.60886722,0.000138,2]
[338415628,1726620643129,-659.39113278,0.000138,2]
[338415629,1726620644686,-209.04050022,0.000138,2]
[338415630,1726620644697,-151.0,0.000138,2]
[338415631,1726620644706,-299.627395,0.000138,2]
[338415632,1726620644716,-34.84411278,0.000138,2]
[338415633,1726620644731,-116.15588722,0.000138,2]
[338415634,1726620644740,-151.0,0.000138,2]
[338415635,1726620644750,-34.09796777,0.000138,2]
[338415636,1726620644762,-116.90203223,0.000138,2]
[338415637,1726620644772,-299.627395,0.000138,2]
[338415638,1726620644781,-223.681382,0.000138,2]
[338415639,1726620644790,-223.681382,0.000138,2]
[338415640,1726620644800,-181.635064,0.000138,2]
[338415641,1726620644810,-223.681382,0.000138,2]
[338415642,1726620644819,-223.681382,0.000138,2]
[338415643,1726620644830,-232.079863,0.000138,2]
[338415644,1726620644840,-232.079863,0.000138,2]
[338415645,1726620644850,-151.0,0.000138,2]
[338415646,1726620644859,-151.0,0.000138,2]
[338415647,1726620644868,-151.0,0.000138,2]
[338415648,1726620644878,-151.0,0.000138,2]
[338415649,1726620644887,-157.33987,0.000138,2]
[338415650,1726620644896,-151.0,0.000138,2]
[338415651,1726620644906,-151.0,0.000138,2]
[338415652,1726620644915,-151.0,0.000138,2]
[338415653,1726620644926,-151.0,0.000138,2]
[338415654,1726620644935,-151.0,0.000138,2]
[338415655,1726620644945,-151.0,0.000138,2]
[338415656,1726620644954,-151.0,0.000138,2]
[338415657,1726620644963,-151.0,0.000138,2]
[338415658,1726620644972,-162.617174,0.000138,2]
[338415659,1726620644982,-162.617174,0.000138,2]
[338415660,1726620644991,-162.617174,0.000138,2]
[338415661,1726620645002,-162.617174,0.000138,2]
[338415662,1726620645011,-151.0,0.000138,2]
[338415663,1726620645021,-151.0,0.000138,2]
[338415664,1726620645032,-151.0,0.000138,2]
[338415665,1726620645041,-151.0,0.000138,2]
[338415666,1726620645051,-151.0,0.000138,2]
[338415667,1726620645062,-220.2369,0.000138,2]
[338415668,1726620645071,-176.609639,0.000138,2]
[338415669,1726620645081,-151.0,0.000138,2]
[338415670,1726620645090,-994.13139341,0.000138,2]
[338415671,1726620645104,-270.16197959,0.000138,2]
[338415672,1726620645114,-176.609639,0.000138,2]
[338415673,1726620645125,-1264.293373,0.000138,2]
[338415674,1726620645135,-151.0,0.000138,2]
[338415675,1726620645145,-151.0,0.000138,2]
[338415676,1726620645155,-59.43500841,0.000138,2]
[338415677,1726620645167,-91.56499159,0.000138,2]
[338415678,1726620645176,-151.0,0.000138,2]
[338415679,1726620645186,-151.0,0.000138,2]
[338415680,1726620645195,-151.0,0.000138,2]
[338415681,1726620645204,-24.97434506,0.000138,2]
[338415682,1726620645472,-126.02565494,0.000138,2]
[338415683,1726620645483,-228.672876,0.000138,2]
[338415684,1726620645494,-228.672876,0.000138,2]
[338415685,1726620645505,-159.291619,0.000138,2]
[338415686,1726620645516,-159.291619,0.000138,2]
[338415687,1726620645527,-114.22778407,0.000138,2]
[338415688,1726620645558,-27330.35753324,0.000129,2]
[338415689,1726620645570,-446.25,0.000129,2]
[338415690,1726620645672,2835.2968292,0.00012561,2]
[338415695,1726620646364,-692.85376747,0.00012777,2]
[338415696,1726620646373,-1756.13653323,0.000129,2]
[338415697,1726620646388,-673.60037733,0.000129,2]
[338415698,1726620646399,-299.71333598,0.000129,2]
[338415699,1726620646410,-3700.01618862,0.000129,2]
[338415700,1726620646478,-1734.84626364,0.000129,2]
[338415701,1726620646489,-912.34615092,0.000129,2]
[338415702,1726620646500,-286.68669669,0.000129,2]
[338415703,1726620646511,-856.20926424,0.000129,2]
[338415704,1726620646522,-906.315,0.000129,2]
[338415705,1726620646533,-2332.21305611,0.000129,2]
[338415706,1726620646544,-527.0,0.00013704,2]
[338415707,1726620646554,-36.77221593,0.000138,2]
[338415708,1726620646563,-449.582672,0.000138,2]
[338415709,1726620646573,-449.582672,0.000138,2]
[338415710,1726620646582,-449.582672,0.000138,2]
[338415711,1726620646591,-449.582672,0.000138,2]
[338415712,1726620646600,-221.101635,0.000138,2]
[338415713,1726620646609,-221.101635,0.000138,2]
[338415714,1726620646618,-151.0,0.000138,2]
[338415715,1726620646710,-151.0,0.000138,2]
[338415716,1726620646719,-151.0,0.000138,2]
[338415717,1726620646728,-151.0,0.000138,2]
[338415718,1726620646737,-151.0,0.000138,2]
[338415719,1726620646746,-227.0,0.000138,2]
[338415720,1726620646755,-151.0,0.000138,2]
[338415721,1726620646764,-173.338598,0.000138,2]
[338415722,1726620646773,-173.338598,0.000138,2]
[338415723,1726620646782,-211.08230228,0.000138,2]
[338415724,1726620646793,-861.13001372,0.000138,2]
[338415725,1726620646802,-173.338598,0.000138,2]
[338415726,1726620646811,-249.412591,0.000138,2]
[338415727,1726620646820,-173.338598,0.000138,2]
[338415728,1726620646830,-249.412591,0.000138,2]
[338415729,1726620646839,-1072.212316,0.000138,2]
[338415730,1726620646849,-249.412591,0.000138,2]
[338415731,1726620646858,-249.412591,0.000138,2]
[338415732,1726620646867,-151.0,0.000138,2]
[338415733,1726620646876,-194.752804,0.000138,2]
[338415734,1726620646886,-187.564581,0.000138,2]
[338415735,1726620646895,-187.564581,0.000138,2]
[338415736,1726620646904,-187.564581,0.000138,2]
[338415737,1726620646913,-187.564581,0.000138,2]
[338415738,1726620646922,-254.376,0.000138,2]
[338415739,1726620646931,-254.376,0.000138,2]
[338415740,1726620646941,-151.0,0.000138,2]
[338415741,1726620646950,-151.0,0.000138,2]
[338415742,1726620646959,-719.0,0.000138,2]
[338415743,1726620646967,-151.0,0.000138,2]
[338415744,1726620646977,-151.464471,0.000138,2]
[338415745,1726620646986,-151.0,0.000138,2]
[338415746,1726620646995,-1702.987667,0.000138,2]
[338415747,1726620647004,-151.0,0.000138,2]
[338415748,1726620647013,-291.575652,0.000138,2]
[338415749,1726620647024,-1702.987667,0.000138,2]
[338415750,1726620647033,-7206.79272356,0.000138,2]
[338415751,1726620647045,-719.95798759,0.000138,2]
[338415752,1726620647120,-3027.34552018,0.000138,2]
[338415753,1726620647132,-4134.237394,0.000138,2]
[338415754,1726620647144,-779.46259794,0.000138,2]
[338415755,1726620647155,-849.13398569,0.000138,2]
[338415756,1726620647173,-2709.03931074,0.000138,2]
[338415757,1726620647184,-4549.00000001,0.000138,2]
[338415758,1726620647195,-578.94999999,0.000138,2]
[338415759,1726620647206,-447.07668428,0.000138,2]
[338415760,1726620647217,-5734.42940032,0.000138,2]
[338415761,1726620769806,222.0,0.0001224,2]
[338415762,1726620812115,246.54,0.00010775,2]
[338415763,1726620949437,688.44,0.00012583,2]
[338415764,1726620953208,250.0,0.00012583,2]
[338415765,1726621048471,188.83,0.00012586,2]
[338415766,1726621068695,4364.13,0.00012586,2]
[338415767,1726621089412,333.67,0.0001513,120]
[338415768,1726621135978,250.0,0.00012607,2]
[338415769,1726621201435,11575.14,0.00012515,2]
[338415770,1726621202830,250.0,0.00012553,2]
[338415771,1726621303641,234.21,0.00010623,2]
[338415772,1726621347657,219.56,0.00012429,2]
[338415773,1726621375373,186.14,0.00012555,2]
[338415774,1726621375662,186.14,0.00012576,2]
[338415775,1726621375848,186.14,0.00012597,2]
[338415776,1726621376070,186.14,0.00012618,2]
[338415777,1726621468380,449.24,0.00012623,2]
[338415778,1726621492681,157.2,0.00010959,2]
[338415779,1726621585485,1791.96521789,0.0001264,2]
[338415780,1726621698044,250.0,0.00012598,2]
[338415781,1726621742815,-802.85197272,0.00012644,2]
[338415782,1726621801620,222.49,0.00010737,2]
[338415784,1726621832673,-175.22,0.00012784,2]
[338415785,1726621832683,-692.85376746,0.000128,2]
[338415786,1726621832692,-150.0,0.00012899,2]
[338415787,1726621832701,-300.0,0.00012899,2]
[338415788,1726621832711,-11977.2221,0.000129,2]
[338415789,1726621832720,-1980.7459,0.000129,2]
[338415790,1726621832730,-1000.0,0.000129,2]
[338415791,1726621832739,-503.9333,0.000129,2]
[338415792,1726621832749,-222.0,0.0001291,2]
[338415793,1726621832758,-464.444,0.00012999,2]
[338415794,1726621832770,-192.129,0.00012999,2]
[338415795,1726621832779,-925.73,0.00013,2]
[338415796,1726621832788,-222.49,0.00013,2]
[338415797,1726621832798,-499.99,0.00013118,2]
[338415798,1726621832808,-1000.0,0.00013124,2]
[338415799,1726621832817,-448.0,0.00013125,2]
[338415800,1726621832827,-1548.0,0.00013125,2]
[338415801,1726621832836,-625.0,0.00013125,2]
[338415802,1726621832846,-1262.0,0.00013125,2]
[338415803,1726621832856,-810.0,0.00013125,2]
[338415804,1726621832866,-558.0,0.00013125,2]
[338415805,1726621832876,-932.0,0.00013125,2]
[338415806,1726621832885,-150.0,0.00013125,2]
[338415807,1726621832895,-553.0,0.00013125,2]
[338415808,1726621832904,-1902.0,0.00013125,2]
[338415809,1726621832913,-806.0,0.00013125,2]
[338415810,1726621832923,-3346.0,0.00013125,2]
[338415811,1726621832933,-248.0,0.00013125,2]
[338415812,1726621832942,-1916.0,0.00013125,2]
[338415813,1726621832951,-150.0,0.00013134,2]
[338415814,1726621832960,-13484.0,0.00013134,2]
[338415815,1726621832970,-1146.0,0.00013134,2]
[338415816,1726621832979,-5864.0,0.00013134,2]
[338415817,1726621832988,-1080.0,0.00013134,2]
[338415818,1726621832997,-150.0,0.0001317,2]
[338415819,1726621833007,-168.21,0.00013183,2]
[338415820,1726621833017,-179.5,0.00013185,2]
[338415821,1726621833026,-250.65,0.00013356,2]
[338415822,1726621833035,-1000.0,0.00013366,2]